bitfinex-derivatives/quotes_ETHF0:USTF0_20241005
["timestamp","ask_amount","ask_price","bid_price","bid_amount"]
[1728108797785,4.3876,2415.5,2415.4,1.08500039]
[1728108798889,4.3876,2415.5,2415.2,0.4133]
[1728108798890,7.35363555,2415.5,2415.2,0.4133]
[1728108799190,0.68723,2415.4,2415.3,0.57970835]
[1728108799384,0.68723,2415.4,2415.2,0.4133]
[1728108799585,0.68723,2415.4,2415.3,0.57950957]
[1728108799878,0.28983,2415.4,2415.3,0.57949383]
[1728108800077,0.28983,2415.4,2415.3,0.57949035]
[1728108800280,0.28983,2415.4,2415.2,1.7041]
[1728108804684,3.49763,2415.3,2415.2,1.7041]
[1728108804984,0.28983,2415.3,2415.2,1.7041]
[1728108805285,3.49763,2415.3,2415.2,1.7041]
[1728108809486,4.38763,2415.3,2415.2,0.4133]
[1728108813189,3.49763,2415.3,2415.2,0.4133]
[1728108816892,3.90843,2415.3,2415.2,0.4133]
[1728108818300,0.70063,2415.3,2415.2,0.4133]
[1728108818504,3.90843,2415.3,2415.2,0.4133]
[1728108819793,0.70063,2415.3,2415.2,0.4133]
[1728108819989,3.90843,2415.3,2415.2,0.4133]
[1728108820194,3.49763,2415.3,2415.2,0.4133]
[1728108825908,0.28983,2415.3,2415.2,0.4133]
[1728108826504,3.49763,2415.3,2415.2,0.4133]
[1728108829509,4.0978,2415.3,2414.9,0.096]
[1728108829711,0.28986,2415.1,2415.0,0.3907]
[1728108829912,3.49766,2415.1,2415.0,0.3907]
[1728108831416,0.28986,2415.1,2415.0,0.3907]
[1728108831612,1.2859,2415.3,2415.0,0.3907]
[1728108831809,0.28985,2415.2,2415.0,0.3907]
[1728108832011,3.2078,2415.1,2415.0,0.3907]
[1728108832411,0.28985,2415.2,2415.0,0.3907]
[1728108832613,3.2078,2415.1,2415.0,0.3907]
[1728108833312,3.49765,2415.1,2415.0,0.3907]
[1728108834217,4.39765,2415.1,2415.0,0.3907]
[1728108834407,0.28988,2414.9,2414.8,0.3862]
[1728108834609,0.28988,2414.9,2414.8,0.5790864]
[1728108834816,0.28988,2414.9,2414.6,0.7945]
[1728108834817,1.18988,2414.9,2414.6,0.7945]
[1728108835017,3.4977,2414.7,2414.6,0.7945]
[1728108835210,3.4977,2414.7,2414.6,1.37368591]
[1728108836520,3.4977,2414.7,2414.6,0.96538591]
[1728108838017,3.4977,2414.7,2414.6,0.96558806]
[1728108839821,3.9024,2414.7,2414.6,0.96558806]
[1728108840324,0.6946,2414.7,2414.6,0.96558806]
[1728108840516,3.9024,2414.7,2414.6,0.3862]
[1728108840914,3.9024,2414.7,2414.6,0.9660519]
[1728108841321,4.8024,2414.7,2414.6,0.9660519]
[1728108842917,3.9024,2414.7,2414.6,0.3862]
[1728108843220,3.9024,2414.7,2414.6,0.9661859]
[1728108844515,4.8024,2414.7,2414.6,0.9661859]
[1728108844923,4.8024,2414.7,2414.6,0.5799859]
[1728108845425,1.5946,2414.7,2414.6,0.5799859]
[1728108845626,4.8024,2414.7,2414.6,0.5799859]
[1728108846019,1.5946,2414.7,2414.6,0.5799859]
[1728108846217,1.5946,2414.7,2414.6,0.57979886]
[1728108846523,4.8024,2414.7,2414.5,0.4018]
[1728108847616,0.28991,2414.6,2414.5,0.4018]
[1728108847821,0.28991,2414.6,2414.5,0.9815489]
[1728108848222,0.28991,2414.6,2414.5,0.4018]
[1728108848418,0.67741,2414.6,2414.5,0.4018]
[1728108848619,0.67741,2414.6,2414.4,0.8239]
[1728108848620,0.3875,2414.6,2414.4,0.8239]
[1728108848823,0.28992,2414.5,2414.4,1.2352]
[1728108849017,0.28992,2414.5,2414.4,1.8149113]
[1728108849524,0.28992,2414.5,2414.4,1.2352]
[1728108849837,0.28992,2414.5,2414.4,1.81486975]
[1728108850332,3.49772,2414.5,2414.4,1.81486975]
[1728108850534,3.2078,2414.5,2414.4,1.81486975]
[1728108850732,3.49772,2414.5,2414.4,1.81486975]
[1728108851434,3.2078,2414.5,2414.4,1.81486975]
[1728108852127,3.49772,2414.5,2414.4,1.81486975]
[1728108852527,3.2078,2414.5,2414.4,1.81486975]
[1728108852924,3.2078,2414.5,2414.4,1.81474605]
[1728108853627,0.67742,2414.6,2414.4,1.81474605]
[1728108853833,3.2078,2414.5,2414.4,1.2352]
[1728108854030,3.2078,2414.5,2414.4,1.81472635]
[1728108856236,3.2078,2414.5,2414.4,1.2352]
[1728108856446,3.2078,2414.5,2414.4,1.81469174]
[1728108856634,3.2078,2414.5,2414.4,1.2352]
[1728108856945,3.2078,2414.5,2414.4,1.81466125]
[1728108860240,3.2078,2414.5,2414.4,1.2352]
[1728108860442,3.2078,2414.5,2414.4,1.81461684]
[1728108861244,3.2078,2414.5,2414.4,1.2352]
[1728108861448,3.2078,2414.5,2414.4,1.8146119]
[1728108861746,3.2078,2414.5,2414.4,1.2352]
[1728108862049,3.2078,2414.5,2414.4,1.81461335]
[1728108862351,3.49772,2414.5,2414.4,1.81461438]
[1728108863351,0.28992,2414.5,2414.4,1.81461438]
[1728108863546,3.49772,2414.5,2414.4,1.81461438]
[1728108863951,0.28992,2414.5,2414.4,1.81461438]
[1728108864153,3.49772,2414.5,2414.4,1.81461438]
[1728108865348,0.28992,2414.5,2414.4,1.81461438]
[1728108866153,3.49772,2414.5,2414.4,1.81465503]
[1728108866654,3.49772,2414.5,2414.4,1.2352]
[1728108866842,3.49772,2414.5,2414.4,1.8146824]
[1728108868353,0.28992,2414.5,2414.4,1.8146824]
[1728108868749,3.49772,2414.5,2414.4,1.8146824]
[1728108870157,0.28992,2414.5,2414.4,1.8146824]
[1728108870551,3.49772,2414.5,2414.4,1.8146824]
[1728108870851,0.28992,2414.5,2414.4,1.8146824]
[1728108871153,3.49772,2414.5,2414.4,1.8146824]
[1728108873049,3.49772,2414.5,2414.4,1.81501207]
[1728108873756,0.28992,2414.5,2414.4,1.81501207]
[1728108873966,3.49772,2414.5,2414.4,1.81501207]
[1728108876162,4.39772,2414.5,2414.4,0.99111207]
[1728108876357,4.39772,2414.5,2414.4,0.9915176]
[1728108876864,4.39772,2414.5,2414.4,0.99152513]
[1728108877456,4.39772,2414.5,2414.4,1.92012881]
[1728108878255,1.18992,2414.5,2414.4,1.92012881]
[1728108878457,4.39772,2414.5,2414.4,1.92012881]
[1728108879269,1.18992,2414.5,2414.4,1.92012881]
[1728108879458,4.39772,2414.5,2414.4,1.92012881]
[1728108879961,1.18992,2414.5,2414.4,1.9212941]
[1728108880160,4.39772,2414.5,2414.4,1.9212941]
[1728108880667,4.1078,2414.5,2414.4,2.50088691]
[1728108881164,4.1078,2414.5,2414.4,3.66271635]
[1728108881664,4.39772,2414.5,2414.4,3.66271635]
[1728108882058,4.1078,2414.5,2414.4,3.66271635]
[1728108882458,3.2078,2414.5,2414.4,4.72715635]
[1728108883257,3.2078,2414.5,2414.4,4.72721022]
[1728108883663,4.85044555,2414.7,2414.4,4.72721022]
[1728108883961,3.2078,2414.8,2414.5,5.06889114]
[1728108884167,3.2078,2414.8,2414.7,0.2899]
[1728108884465,3.2078,2414.8,2414.7,1.7998941]
[1728108884663,3.2078,2414.8,2414.7,5.9414941]
[1728108885764,3.2078,2414.8,2414.7,5.6515941]
[1728108885964,3.2078,2414.8,2414.7,2.0894933]
[1728108886465,3.2078,2414.8,2414.7,2.3059941]
[1728108886669,3.2078,2414.8,2414.7,0.796]
[1728108886862,3.2078,2414.8,2414.7,2.30606989]
[1728108887059,3.2078,2414.8,2414.7,0.796]
[1728108887268,3.2078,2414.8,2414.7,2.88551552]
[1728108887466,3.2078,2414.8,2414.7,2.30605804]
[1728108889261,0.28989,2414.9,2414.7,2.30605804]
[1728108889468,3.49769,2414.9,2414.8,1.92305804]
[1728108890868,3.49769,2414.9,2414.8,0.99379155]
[1728108891065,3.2078,2414.9,2414.8,1.92263304]
[1728108891665,3.49768,2414.9,2414.8,2.50165849]
[1728108891863,3.49768,2414.9,2414.8,1.92263304]
[1728108893672,3.49768,2414.9,2414.8,0.99321464]
[1728108893865,3.49768,2414.9,2414.8,1.92155806]
[1728108897582,3.49768,2414.9,2414.8,0.413]
[1728108897867,3.49768,2414.9,2414.8,1.92133009]
[1728108899569,0.28988,2414.9,2414.8,1.92133009]
[1728108899772,0.28987,2415.0,2414.8,6.35201009]
[1728108900072,0.28987,2415.0,2414.9,0.58012696]
[1728108900374,0.28985,2415.1,2414.9,1.79807059]
[1728108900672,3.6147,2415.2,2415.0,1.00733449]
[1728108900862,0.28985,2415.1,2415.0,0.836]
[1728108901064,3.2078,2415.2,2415.0,1.41602656]
[1728108901265,3.2078,2415.2,2415.1,6.82851214]
[1728108901471,3.2078,2415.2,2415.1,7.11689328]
[1728108901673,3.2078,2415.2,2415.1,6.53866214]
[1728108901871,3.2078,2415.2,2415.1,6.82851214]
[1728108902267,3.2078,2415.2,2415.1,6.53866214]
[1728108902877,3.2078,2415.2,2415.1,5.0308]
[1728108903274,3.2078,2415.2,2415.1,6.5372452]
[1728108903472,3.2078,2415.2,2415.1,6.8270952]
[1728108905085,3.49762,2415.4,2415.1,6.8270952]
[1728108905281,3.49762,2415.4,2415.2,0.976802]
[1728108905576,3.2078,2415.4,2415.2,0.3974]
[1728108905779,3.49762,2415.4,2415.3,0.4263]
[1728108906575,0.28982,2415.4,2415.3,0.4263]
[1728108906773,3.49762,2415.4,2415.3,0.4263]
[1728108907371,0.28982,2415.4,2415.3,0.4263]
[1728108907574,3.49762,2415.4,2415.3,0.4263]
[1728108908083,0.28982,2415.4,2415.3,0.4263]
[1728108908578,3.49762,2415.4,2415.3,0.4263]
[1728108911584,3.2078,2415.4,2415.3,0.4263]
[1728108915793,3.2078,2415.4,2415.3,6.15023]
[1728108915978,3.2078,2415.4,2415.3,12.72847528]
[1728108916171,0.096,2415.8,2415.3,14.52732299]
[1728108916172,3.2078,2415.7,2415.3,14.52732299]
[1728108916489,3.2078,2415.7,2415.6,1.17979]
[1728108916886,3.2078,2415.7,2415.6,11.89775955]
[1728108917082,3.2078,2415.7,2415.6,11.89774309]
[1728108917379,3.2078,2415.7,2415.6,11.31979]
[1728108918088,0.68215,2416.0,2415.6,11.28263482]
[1728108918287,0.68215,2416.0,2415.7,1.09897]
[1728108918480,3.2078,2415.8,2415.7,1.09897]
[1728108918881,3.2078,2415.8,2415.7,5.23817]
[1728108919378,3.2078,2415.8,2415.7,5.66367]
[1728108920476,0.68215,2416.0,2415.7,5.66367]
[1728108920678,3.2078,2415.8,2415.7,1.52447]
[1728108921093,3.2078,2415.8,2415.7,5.66367]
[1728108927785,0.28975,2416.0,2415.7,5.66367]
[1728108927989,0.28975,2416.0,2415.9,0.89]
[1728108928483,3.49755,2416.0,2415.9,0.89]
[1728108930185,0.28975,2416.0,2415.9,0.89]
[1728108930690,3.2078,2416.0,2415.9,0.89]
[1728108930884,3.2078,2416.0,2415.9,1.17976]
[1728108931292,3.2078,2416.0,2415.9,0.89]
[1728108932097,3.2078,2416.0,2415.9,1.17976]
[1728108932792,3.2078,2416.0,2415.9,0.89]
[1728108932990,3.2078,2416.0,2415.9,1.17976]
[1728108936595,3.2078,2416.0,2415.9,1.42868442]
[1728108938798,3.2078,2416.0,2415.9,5.56788442]
[1728108939896,0.096,2416.3,2415.9,11.27812442]
[1728108940102,0.4059,2416.4,2416.3,0.28971]
[1728108940398,0.4059,2416.4,2416.3,1.17971]
[1728108940789,0.4059,2416.4,2416.3,0.89]
[1728108941395,0.4059,2416.4,2416.3,1.2934]
[1728108943696,0.4059,2416.4,2415.7,3.2078]
[1728108943697,5.4343,2416.4,2415.8,0.385]
[1728108943898,1.2959,2416.4,2415.9,0.57753858]
[1728108944107,3.49753,2416.1,2415.9,0.89]
[1728108944299,1.2397,2416.0,2415.9,0.89]
[1728108945400,1.2397,2416.0,2415.9,1.46801725]
[1728108945593,1.2397,2416.0,2415.9,1.46801446]
[1728108945798,1.2397,2416.0,2415.9,0.89]
[1728108946300,1.2397,2416.0,2415.9,1.46814627]
[1728108946508,1.2397,2416.0,2415.9,0.89]
[1728108946702,1.2397,2416.0,2415.9,1.17976]
[1728108946898,1.2397,2416.0,2415.9,1.75795905]
[1728108947098,1.2397,2416.0,2415.9,1.17976]
[1728108947407,1.2397,2416.0,2415.9,1.75794546]
[1728108948299,1.2397,2416.0,2415.9,1.46818546]
[1728108949005,1.2397,2416.0,2415.9,0.89]
[1728108949403,1.2397,2416.0,2415.9,1.46834936]
[1728108951207,1.2397,2416.0,2415.9,1.75810936]
[1728108951802,0.8165,2416.0,2415.9,1.75810936]
[1728108952004,3.2078,2416.2,2415.9,5.60754936]
[1728108952198,3.2078,2416.2,2416.1,1.17973]
[1728108952611,3.2078,2416.2,2416.1,2.01103]
[1728108953904,3.2078,2416.2,2416.1,2.58959238]
[1728108954409,0.8049,2416.4,2416.3,0.28971]
[1728108954711,0.8049,2416.4,2416.3,1.46856238]
[1728108956713,0.8049,2416.4,2416.3,0.89]
[1728108956907,0.8049,2416.4,2416.3,2.04738793]
[1728108957408,0.8049,2416.4,2416.3,2.04745458]
[1728108959017,0.8049,2416.4,2416.3,1.46876224]
[1728108959409,1.0946,2416.4,2416.3,0.57876224]
[1728108959805,0.8049,2416.4,2416.3,0.57876224]
[1728108961110,0.8049,2416.4,2416.3,1.50578349]
[1728108962412,0.8049,2416.4,2416.2,1.17972]
[1728108962817,0.8049,2416.4,2416.3,1.50653077]
[1728108963415,0.8049,2416.4,2416.3,1.79624077]
[1728108966818,0.8049,2416.4,2416.3,0.28971]
[1728108967019,0.8049,2416.4,2416.3,0.8692231]
[1728108967215,0.8049,2416.4,2416.3,1.79644406]
[1728108969617,0.8049,2416.4,2416.3,0.28971]
[1728108969925,0.8049,2416.4,2416.3,1.79666416]
[1728108973317,0.8049,2416.4,2416.3,0.28971]
[1728108973517,0.8049,2416.4,2416.3,1.7966603]
[1728108977519,0.8049,2416.4,2416.3,0.28971]
[1728108977719,0.8049,2416.4,2416.3,1.79623666]
[1728108978419,0.8049,2416.4,2416.3,0.28971]
[1728108978626,0.3902,2416.4,2416.3,1.79630994]
[1728108979329,3.2078,2416.5,2416.4,0.2897]
[1728108979523,3.2078,2416.5,2416.4,1.79629994]
[1728108980928,3.2078,2416.5,2416.4,2.68653306]
[1728108986429,0.67856,2416.7,2416.5,0.28968]
[1728108986629,0.67856,2416.7,2416.6,1.00165118]
[1728108986820,8.02476,2416.7,2416.6,1.00165118]
[1728108988227,8.02476,2416.7,2416.6,1.00154965]
[1728108990238,8.02476,2416.7,2416.6,0.57944965]
[1728108991837,8.02476,2416.7,2416.6,0.57952704]
[1728108994333,11.27257899,2416.7,2416.6,0.57952704]
[1728108996941,8.06477899,2416.7,2416.6,0.57952704]
[1728108997142,11.27257899,2416.7,2416.6,0.57952704]
[1728108998035,8.06477899,2416.7,2416.6,0.57952704]
[1728108998228,8.02476,2416.7,2416.6,0.57952704]
[1728108998931,0.28968,2416.6,2416.4,0.89]
[1728108999141,3.54810855,2416.6,2416.4,1.1797]
[1728108999341,0.3937,2416.5,2416.4,1.1797]
[1728108999544,0.3937,2416.5,2416.4,2.97653488]
[1728108999837,0.3937,2416.5,2416.4,4.42615617]
[1728109000042,3.6015,2416.5,2416.4,4.42615617]
[1728109000549,3.6015,2416.5,2416.4,4.13645617]
[1728109000738,3.6015,2416.5,2416.4,4.42615617]
[1728109001441,0.3937,2416.5,2416.4,4.42615617]
[1728109001641,3.6015,2416.5,2416.4,4.42615617]
[1728109001938,0.3937,2416.5,2416.4,4.42615617]
[1728109002237,0.3937,2416.5,2416.4,1.1797]
[1728109002238,3.6015,2416.5,2416.4,1.1797]
[1728109002444,3.6015,2416.5,2416.4,2.33709351]
[1728109002655,0.3937,2416.5,2416.4,5.00517025]
[1728109003039,3.89118,2416.5,2416.4,5.00517025]
[1728109003243,3.6015,2416.5,2416.4,5.00517025]
[1728109004139,0.3937,2416.5,2416.4,5.00517025]
[1728109004544,3.6015,2416.5,2416.4,5.00517025]
[1728109004846,3.89118,2416.5,2416.4,5.00517025]
[1728109005542,3.6015,2416.5,2416.4,5.00517025]
[1728109005742,3.6015,2416.5,2416.4,5.0053123]
[1728109006140,3.89118,2416.5,2416.4,3.8256123]
[1728109006842,3.25842855,2416.6,2416.4,4.7156123]
[1728109007045,3.78912215,2416.8,2416.7,0.28966]
[1728109007046,3.25842855,2416.8,2416.7,0.28966]
[1728109007244,3.25842855,2416.9,2416.8,0.28965]
[1728109007441,3.2078,2417.0,2416.9,0.28964]
[1728109007442,6.46622855,2417.0,2416.9,0.28964]
[1728109007643,6.46622855,2417.0,2416.9,2.2096494]
[1728109008046,6.75584855,2417.0,2416.9,1.9200094]
[1728109008541,6.75584855,2417.0,2416.9,0.99194208]
[1728109009242,6.75584855,2417.0,2416.9,0.99140792]
[1728109009545,6.75584855,2417.0,2416.9,0.4119]
[1728109009742,6.75584855,2417.0,2416.9,0.99130286]
[1728109012345,6.75584855,2417.0,2416.9,0.4119]
[1728109012751,6.75584855,2417.0,2416.9,0.99116646]
[1728109013055,0.28965,2416.8,2416.7,0.89]
[1728109013244,0.28965,2416.8,2416.7,0.57934068]
[1728109013740,1.06925,2416.8,2416.7,0.57934068]
[1728109015846,4.27705,2416.8,2416.7,0.57934031]
[1728109018150,1.06925,2416.8,2416.7,0.57934031]
[1728109018343,4.27705,2416.8,2416.7,0.57934031]
[1728109019246,4.27705,2416.8,2416.5,1.2756]
[1728109019247,1.06925,2416.8,2416.5,1.2756]
[1728109019447,0.28967,2416.6,2416.5,1.2756]
[1728109019758,0.28967,2416.6,2416.5,1.8535996]
[1728109020051,0.28967,2416.6,2416.5,3.35982332]
[1728109021053,0.28967,2416.6,2416.5,3.35982554]
[1728109021752,0.28967,2416.6,2416.5,1.2756]
[1728109021957,0.28967,2416.6,2416.5,3.35985216]
[1728109023655,0.28967,2416.6,2416.5,2.39624466]
[1728109023957,0.28967,2416.6,2416.5,1.50624466]
[1728109025054,0.28968,2416.5,2416.4,1.2841]
[1728109025346,0.70498,2416.5,2416.4,2.79070274]
[1728109028946,0.70498,2416.5,2416.4,1.2841]
[1728109029153,0.70498,2416.5,2416.4,2.7904608]
[1728109031360,3.91278,2416.5,2416.4,2.7904608]
[1728109031957,3.91278,2416.5,2416.4,2.79052046]
[1728109032552,0.70498,2416.5,2416.4,2.79052046]
[1728109033057,3.91278,2416.5,2416.4,2.79052046]
[1728109035650,3.6231,2416.5,2416.4,2.79052046]
[1728109036158,3.2078,2416.5,2416.4,2.79052046]
[1728109037160,3.49748,2416.5,2416.4,2.79052046]
[1728109039451,3.49748,2416.5,2416.4,1.2841]
[1728109039657,3.49748,2416.5,2416.4,2.79121761]
[1728109041460,0.28968,2416.5,2416.4,2.79121761]
[1728109041961,3.49748,2416.5,2416.4,2.79121761]
[1728109042755,0.28968,2416.5,2416.4,2.79121761]
[1728109043263,3.49748,2416.5,2416.4,2.79121761]
[1728109043664,0.28968,2416.5,2416.4,2.79121761]
[1728109044163,3.49748,2416.5,2416.4,2.79121761]
[1728109044755,0.28968,2416.5,2416.4,2.79121761]
[1728109046864,3.49748,2416.5,2416.4,2.79121761]
[1728109047364,3.49748,2416.5,2416.4,1.2841]
[1728109047965,0.28968,2416.5,2416.4,1.2841]
[1728109048166,3.49748,2416.5,2416.4,1.2841]
[1728109052366,0.28968,2416.5,2416.4,1.2841]
[1728109052672,3.49748,2416.5,2416.4,1.2841]
[1728109052870,0.28968,2416.5,2416.4,1.2841]
[1728109053473,3.49748,2416.5,2416.4,1.2841]
[1728109055464,3.49748,2416.5,2416.4,2.79120902]
[1728109055666,0.28968,2416.5,2416.4,2.79120902]
[1728109056273,3.49748,2416.5,2416.4,2.79120902]
[1728109058174,0.28968,2416.5,2416.4,2.79120902]
[1728109058669,3.49748,2416.5,2416.4,2.79120902]
[1728109058874,3.49748,2416.5,2416.4,3.08090902]
[1728109058875,3.2078,2416.5,2416.4,3.08090902]
[1728109059174,3.2078,2416.5,2416.4,4.24058143]
[1728109059375,3.2078,2416.5,2416.4,4.81912291]
[1728109059871,3.2078,2416.5,2416.4,8.95752291]
[1728109061066,3.2078,2416.5,2416.4,8.95749204]
[1728109061466,3.2078,2416.5,2416.4,5.7122]
[1728109061664,3.2078,2416.5,2416.4,6.29073935]
[1728109061870,3.2078,2416.5,2416.4,8.95808626]
[1728109062779,0.28966,2416.7,2416.5,0.28968]
[1728109062976,0.28966,2416.7,2416.6,3.19273117]
[1728109063366,3.49746,2416.7,2416.6,3.19273117]
[1728109064280,3.2078,2416.7,2416.6,3.19273117]
[1728109064480,3.49746,2416.7,2416.6,3.19273117]
[1728109064778,3.49746,2416.7,2416.6,3.1929265]
[1728109065180,3.49746,2416.7,2416.6,3.77150103]
[1728109065372,3.49746,2416.7,2416.6,4.93127769]
[1728109065973,0.28966,2416.7,2416.6,4.93127769]
[1728109066178,3.49746,2416.7,2416.6,4.93127769]
[1728109068185,0.28966,2416.7,2416.6,4.9311086]
[1728109068482,3.49746,2416.7,2416.6,4.9311086]
[1728109068976,0.28966,2416.7,2416.6,4.9311086]
[1728109069183,3.49746,2416.7,2416.6,4.9311086]
[1728109071581,3.49746,2416.7,2416.6,2.84329445]
[1728109071773,3.49746,2416.7,2416.6,3.77090466]
[1728109071979,3.49746,2416.7,2416.6,4.93042171]
[1728109072180,0.28966,2416.7,2416.6,3.77090618]
[1728109072586,3.49746,2416.7,2416.6,3.77090618]
[1728109073389,0.28966,2416.7,2416.6,3.77090618]
[1728109073582,3.49746,2416.7,2416.6,3.77090618]
[1728109074987,3.49746,2416.7,2416.6,3.19246659]
[1728109075197,3.49746,2416.7,2416.6,1.6851]
[1728109075588,3.49746,2416.7,2416.6,3.19227849]
[1728109076285,0.28966,2416.7,2416.6,3.19227849]
[1728109076880,3.49746,2416.7,2416.6,3.19227849]
[1728109077282,0.28966,2416.7,2416.6,3.19227849]
[1728109077588,3.49746,2416.7,2416.6,3.19227849]
[1728109077990,3.49746,2416.7,2416.6,3.77061614]
[1728109078185,3.49746,2416.7,2416.6,3.19227849]
[1728109078582,3.49746,2416.7,2416.6,3.77061292]
[1728109078789,0.28966,2416.7,2416.6,3.77061292]
[1728109078982,3.49746,2416.7,2416.6,3.77052524]
[1728109079691,3.49746,2416.7,2416.6,3.77052612]
[1728109079893,3.49746,2416.7,2416.6,3.19219244]
[1728109081887,3.49746,2416.7,2416.6,3.19092258]
[1728109082094,3.49746,2416.7,2416.6,3.19238974]
[1728109083189,0.28966,2416.7,2416.6,3.19238974]
[1728109083398,3.49746,2416.7,2416.6,3.19238974]
[1728109084293,0.28966,2416.7,2416.6,3.19238974]
[1728109084794,3.49746,2416.7,2416.6,3.19238974]
[1728109085093,0.28966,2416.7,2416.6,3.19238974]
[1728109085287,0.28966,2416.7,2416.6,1.6851]
[1728109085592,3.49746,2416.7,2416.6,5.859783]
[1728109085892,0.28966,2416.7,2416.6,5.28091881]
[1728109086101,0.28966,2416.7,2416.6,5.85978637]
[1728109086493,0.28966,2416.7,2416.6,5.28091881]
[1728109086696,3.49746,2416.7,2416.6,5.28091881]
[1728109087090,3.49746,2416.7,2416.6,5.85979111]
[1728109087595,0.28966,2416.7,2416.6,3.77244954]
[1728109088094,3.49746,2416.7,2416.6,3.77244954]
[1728109088499,0.28966,2416.7,2416.6,3.77244954]
[1728109088893,3.49746,2416.7,2416.6,3.19357724]
[1728109089292,3.49746,2416.7,2416.6,3.77244819]
[1728109089798,3.49746,2416.7,2416.6,3.19357724]
[1728109090194,0.28966,2416.7,2416.6,3.77245581]
[1728109090394,3.49746,2416.7,2416.6,3.77245581]
[1728109090905,3.49746,2416.7,2416.6,3.19357724]
[1728109091399,0.28966,2416.7,2416.6,3.77245667]
[1728109091598,3.49746,2416.7,2416.6,3.77245667]
[1728109092300,0.28966,2416.7,2416.6,3.77245667]
[1728109092500,0.28966,2416.7,2416.6,1.6851]
[1728109092501,3.49746,2416.7,2416.6,1.6851]
[1728109092709,3.49746,2416.7,2416.6,2.88252436]
[1728109092904,3.49746,2416.7,2416.6,0.7951]
[1728109093104,3.49746,2416.7,2416.6,2.30363982]
[1728109094202,3.49746,2416.7,2416.6,2.88253916]
[1728109094597,0.28966,2416.7,2416.6,2.88253916]
[1728109094798,3.49746,2416.7,2416.6,2.88253916]
[1728109096306,3.49746,2416.7,2416.6,0.7951]
[1728109096498,3.49746,2416.7,2416.6,4.39131458]
[1728109097301,0.28966,2416.7,2416.6,4.39131458]
[1728109097505,3.49746,2416.7,2416.6,4.39131458]
[1728109097705,3.49746,2416.7,2416.6,2.88267648]
[1728109098008,3.49746,2416.7,2416.6,4.04344958]
[1728109098203,3.2078,2416.7,2416.6,4.04344958]
[1728109098711,3.49746,2416.7,2416.6,4.04344958]
[1728109099498,3.2078,2416.7,2416.6,0.7951]
[1728109099805,3.2078,2416.7,2416.6,2.88372291]
[1728109100010,3.2078,2416.7,2416.6,4.04480204]
[1728109101102,3.49746,2416.7,2416.6,4.04480204]
[1728109101502,3.25602304,2416.8,2416.6,4.04480204]
[1728109101708,3.25602304,2416.8,2416.6,0.7951]
[1728109101709,3.2078,2416.7,2416.6,0.7951]
[1728109102004,3.25602304,2416.8,2416.6,4.04520382]
[1728109102304,3.49746,2416.7,2416.6,0.7951]
[1728109102508,3.49746,2416.7,2416.6,4.04539879]
[1728109103016,3.49746,2416.7,2416.6,0.7951]
[1728109103017,0.28966,2416.7,2416.6,0.7951]
[1728109103310,3.2078,2416.7,2416.6,4.04528073]
[1728109103611,3.2078,2416.7,2416.6,4.04548191]
[1728109104710,4.21212215,2417.0,2416.9,0.28964]
[1728109104711,3.2078,2417.0,2416.9,0.28964]
[1728109104912,3.2078,2417.0,2416.9,4.43002191]
[1728109105421,3.2078,2417.0,2416.9,4.14038191]
[1728109105900,3.2078,2417.0,2416.9,4.94678191]
[1728109106101,0.9115,2417.3,2416.9,4.94678191]
[1728109106102,4.16752304,2417.3,2416.9,4.94678191]
[1728109106305,0.28961,2417.1,2417.0,1.91873912]
[1728109106501,3.49741,2417.1,2417.0,1.91873912]
[1728109106915,3.2078,2417.1,2417.0,1.91873912]
[1728109107414,3.2078,2417.1,2417.0,1.91707777]
[1728109107609,3.49741,2417.1,2417.0,2.80707777]
[1728109108714,0.28961,2417.1,2417.0,2.80707777]
[1728109109116,3.49741,2417.1,2417.0,2.80707777]
[1728109109514,3.49741,2417.1,2417.0,1.87902991]
[1728109109717,3.49741,2417.1,2417.0,1.299]
[1728109110016,3.2078,2417.1,2417.0,1.299]
[1728109110608,0.68811,2417.2,2417.0,1.299]
[1728109110812,3.2078,2417.1,2417.0,1.299]
[1728109111714,0.68811,2417.2,2417.0,1.299]
[1728109112014,3.2078,2417.1,2417.0,1.299]
[1728109114117,0.68811,2417.2,2417.0,1.299]
[1728109114815,0.3985,2417.2,2417.0,1.299]
[1728109115208,3.2078,2417.1,2417.0,1.299]
[1728109116311,3.2078,2417.1,2417.0,2.22644127]
[1728109116519,0.3985,2417.2,2417.0,3.09571206]
[1728109116817,0.3985,2417.2,2417.1,0.57965079]
[1728109117020,3.6063,2417.2,2417.1,0.57965079]
[1728109117415,0.3985,2417.2,2417.1,0.57965079]
[1728109117608,3.8959,2417.2,2417.1,0.57965079]
[1728109118913,3.8959,2417.2,2417.1,0.57957406]
[1728109119113,3.8959,2417.2,2417.1,1.46957406]
[1728109119114,3.6063,2417.2,2417.1,1.46957406]
[1728109119314,3.6063,2417.2,2417.1,1.75918406]
[1728109119622,3.2078,2417.2,2417.1,1.75918406]
[1728109119916,3.2078,2417.2,2417.1,2.68626679]
[1728109120118,3.2078,2417.2,2417.1,1.75918406]
[1728109120318,3.2078,2417.2,2417.1,1.46957406]
[1728109122324,3.2078,2417.2,2417.1,0.89]
[1728109122512,1.10509,2417.3,2417.1,1.46911521]
[1728109122723,1.10509,2417.3,2417.2,0.57911521]
[1728109122923,4.31289,2417.3,2417.2,0.57911521]
[1728109123319,4.31289,2417.3,2417.2,1.46911521]
[1728109123624,1.10509,2417.3,2417.2,1.46911521]
[1728109123821,1.10509,2417.3,2417.2,0.89]
[1728109123822,4.31289,2417.3,2417.2,0.89]
[1728109125923,1.10509,2417.3,2417.2,0.89]
[1728109126128,4.31289,2417.3,2417.2,0.89]
[1728109126730,1.10509,2417.3,2417.2,0.89]
[1728109127029,4.31289,2417.3,2417.2,0.89]
[1728109127529,1.10509,2417.3,2417.2,0.89]
[1728109127928,4.31289,2417.3,2417.2,0.89]
[1728109128625,1.10509,2417.3,2417.2,0.89]